Workbook

Sheet Hinweise
A1: Hinweise:
A3: - | B3: Positionen mit 0,00€ nicht löschen, sondern bestehen lassen -> es könnte sein das diese Posten in den folgenden Jahren wieder benötigt werden und auch damit nicht in Vergessenheit gerät was es mal gab
A7: - | B7: Die Summe der fortgeschriebenen finanziellen Mittel müssen immer manuell ins Deckblatt des nächsten Haushaltsjahres eingetragen werden.
A8: - | B8: Die Auflistung der fortgeschriebenen finanziellen Mittel im Detailblatt 1 und in den einzelnen Referaten dient als Übersicht, welcher Betrag übernommen werden muss.
A10: - | B10: Somit bildet die Spalte "Übertrag ins nächste HH-Jahr" des jeweiligen Jahres das "Nachrangig verwendbares Vj..-Budget" des nächsten Jahres.
A11: - | B11: Die Spalte "Zurückführung" errechnet sich aus dem nicht verwendeten "Nachrangigen Vj..-Budget" und gilt immer für das nächste Jahr.
A15: - | B15: WICHTIG:
B16: Der Haushaltsplan des Vorjahres, welcher maßgeblich für die Zahlen des neu geplanten Haushaltsplans ist, muss nach Abschluss des ersten Quartals endgültig auf die IST-Werte angepasst werden.
B17: Daraus sollte sich der erste Nachtragshaushalt ergeben, woraus sich wiederum eine Anpassung des Semesterbeitrags für das WS ergeben könnte.
B19: Für die Ermittlung der angeordneten Vermögensänderung des StuRa werden die geplanten Einnahmen als Obergrenze zu Grunde gelegt. Als Einnahmen werden dabei die vom Deckblatt berücksichtigt.
B20: Die Einnahmen aus der Selbstverwaltung, die Zinsen und die Beitragseinnahmen der Studierenden abzüglich der Zurückführung an Studierende.
B21: Den daraus ermittelten Einnahmen werden die noch verfügbaren finanziellen Mittel entgegengestellt, sind diese größer als die geplanten Einnahmen, so ergibt sich die Vermögensänderung auf der Einnahmenseite.
B22: Für die Ermittlung der angeordneten Vermögensänderung des StuRa auf der Ausgabenseite, werden die verfügbaren finanziellen Mittel mit der Mindestreserve verglichen.
B23: Sind diese kleiner als die Mindestreserve, so bildet die Differenz den Betrag der Vermögensänderung.

Sheet Deckblatt
A1: Haushaltsplan Studentinnenschaft HTW Dresden | B1: 2023 | C1: Einnahmen | F1: Ausgaben
C2: PLAN | D2: IST | E2: SALDO | F2: PLAN | G2: IST | H2: SALDO
A3: Selbstverwaltung | C3: ='Detailblatt I'!J54 -> 25950 | D3: ='Detailblatt I'!K54 -> 0 | E3: =D3-C3 -> -25950 | F3: ='Detailblatt I'!M54 -> 260786 | G3: ='Detailblatt I'!N54 -> 0 | H3: =(F3-G3) -> 260786
A4: Beitragseinnahmen der Student:innen | C4: ='Detailblatt II'!F24 -> 184600 | D4: ='Detailblatt II'!G24 -> 26710.67 | E4: =D4-C4 -> -157889.33 | F4: ='Detailblatt II'!I24 -> 0 | G4: ='Detailblatt II'!J24 -> 0 | H4: =(F4-G4) -> 0
A5: Zinsen | C5: ='Detailblatt II'!F28 -> 0 | D5: ='Detailblatt II'!G28 -> 0 | E5: =D5-C5 -> 0 | F5: ='Detailblatt II'!I28 -> 0 | G5: ='Detailblatt II'!J28 -> 0 | H5: =(F5-G5) -> 0
A6: Entnahme (=Einnahme) & Ansparen (=Ausgabe) von Vermögen | C6: =IF((Beitragsermittlung!B16)-('Detailblatt II'!F22+'Detailblatt II'!F23)>0,(Beitragsermittlung!B16)-('Detailblatt II'!F22+'Detailblatt II'!F23),0) -> 328.72 | D6: 0 | E6: =D6-C6 -> -328.72 | F6: 0 | G6: ='Detailblatt II'!G29 -> 0 | H6: =(F6-G6) -> 0
A7: angeordnete Vermögensänderung lt. FO | C7: =Beitragsermittlung!B14 -> 0 | E7: =D7-C7 -> 0 | F7: ='Detailblatt II'!I27 -> 6542.72 | H7: =(F7-G7) -> 6542.72
A8: Zurückführung an Student:innen (StuRa) | C8: 56450 | D8: =C8 -> 56450 | E8: =D8-C8 -> 0
A10: Gesamt: | C10: =SUM(C3:C9) -> 267328.72 | D10: =SUM(D3:D9) -> 83160.67 | E10: =SUM(E3:E9) -> -184168.05 | F10: =SUM(F3:F9) -> 267328.72 | G10: =SUM(G3:G9) -> 0 | H10: =SUM(H3:H9) -> 267328.72
A11: Berechnung des Semesterbeitrag:
B12: Planausgaben: | C12: =F10 -> 267328.72 | E12: In Zeile F6 (Ansparung) manuell einzutragen: | H12: =IF(Deckblatt!C10-Deckblatt!F10>0,Deckblatt!C10-Deckblatt!F10+F6,IF(C10=F10,"Haushaltsplan ist ausgeglichen!","Haushaltsplan ist nicht ausgeglichen!")) -> Haushaltsplan ist ausgeglichen!
A13: - | B13: Planeinnahmen: | C13: =C3+C5 -> 25950
A14: - | B14: Zurückführung: | C14: =C8+C9 -> 56450
A15: - | B15: Vermögensänderung | C15: =C7 -> 0
A16: = | B16: Gesamt: | C16: =C12-C13-C14-C15-F6 -> 184928.72
A17: / | B17: Beitragszahlungen/Jahr: | C17: ='Detailblatt II'!D22+('Detailblatt II'!D23/6*4) -> 7250
A18: = | B18: Stud./Semester: | C18: =IF((C16-'Detailblatt II'!F21)/Deckblatt!C17<0,0,(C16-'Detailblatt II'!F21)/Deckblatt!C17) -> 20.56947862 | D18: Anzusetzender Semesterbeitrag: | F18: =ROUND((C18*2),0)/2 -> 20.5

Sheet Beitragsermittlung
A1: Ermittlung des Beitrages in Bezug auf die angeordnete Vermögensänderung
A3: Geplante Einnahmen | B3: =Deckblatt!F10-Deckblatt!C8-Deckblatt!C9-Deckblatt!F6 -> 210878.72
A4: verfügbare finanzielle Mittel | B4: ='fortgeschr. Mittel+Konto'!D9 -> 136217.28
A5: Obergrenze finanzielle Mittel | B5: =IF(B3<B4,B3,B4) -> 136217.28
A7: Vorgesehene Vermögenssenkung wegen zu hoher verfügbarer finanzieller Mittel | B7: =IF(Beitragsermittlung!B4>Deckblatt!F10-Deckblatt!F6,Beitragsermittlung!B4-Beitragsermittlung!B5,0) -> 0
A8: Mindestreserve | B8: =Mindestreserve!D18 -> 142760
A9: (Verfügbare finanzielle Mittel nach Vermögensenkung) | B9: =B4-B7 -> 136217.28
A10: Untergrenze für verfügbare finanzielle Mittel durch Bemessung an der Mindestreserve wird erreicht | B10: =IF(B5<B8,B8,B5) -> 142760
A11: beabsichtigte Senkung der verfügbaren finanziellen Mittel | B11: =B4-B10 -> -6542.72
A13: Obergrenze für verpflichtende Vermögenssenkung entgegen der (negativen) Erhebung von Beiträgen | B13: =IF(Beitragsermittlung!B11>(Deckblatt!F10-Deckblatt!F6-(Deckblatt!C3+Deckblatt!C5+Deckblatt!C8+Deckblatt!C9+'Detailblatt II'!F21)),Deckblatt!F10-Deckblatt!F6-(Deckblatt!C3+Deckblatt!C5+Deckblatt!C8+Deckblatt!C9+'Detailblatt II'!F21),Beitragsermittlung!B11) -> -6542.72
A14: Vermögenssenkung wegen übermäßig verfügbarer finanzieller Mittel ohne negativem Semesterbeitrag | B14: =IF(B13<0,0,B13) -> 0
A16: restlich zu vereinnahmender Semesterbeitrag ab dem nächsten Sommersemester | B16: =(Deckblatt!F3+Deckblatt!F5+Deckblatt!F7+Deckblatt!F4)-(Deckblatt!C13+Deckblatt!C14+Deckblatt!C15+'Detailblatt II'!F21) -> 149128.72

Sheet Berechnung Lohnkosten
A1: Berechnung der anfallenden Lohnkosten in Abhängigkeit der besetzten Stellen
A3: langfristige Stellen | F3: mittelfristige Stellen | I3: Besetzungsgrad mittelfristige Stellen
B4: Fina. u. Verw. | C4: Assi. d. GF. | D4: IT Infr. | I4: max. mögliche Stellen h/M | J4: =20*40 -> 800
A5: TVL (50%) | B5: E7 Stufe 3 | C5: E9b Stufe 3 | D5: E9b Stufe 3 | I5: geschaffene Stellen h/M | J5: 615
A6: Vertragsdauer | B6: unbefristet | C6: Bis 05.23 | D6: 05.23-05.24 | F6: Brutto je Stunde | G6: 12 | I6: „Schaffungsgrad“ | J6: =J5/J4 -> 0.76875
A7: Bruttoverdienst | B7: 1580.42 | C7: 1760.27 | D7: 1760.27 | F7: Brutto pro Monat | G7: =G6*40 -> 480 | I7: voraussichtlicher Besetzungsgrad | J7: 0.74
I8: entspricht besetzte Stellen h/M | J8: =J7*J5 -> 455.1
A9: Nebenkosten | F9: Nebenkosten
A10: Rentenversicherung | B10: 146.98 | C10: 163.71 | D10: 163.71 | F10: 15% Rentenvers. Pauschal | G10: =G$7*0.15 -> 72
A11: Arbeitslosenversicherung | B11: 18.97 | C11: 21.12 | D11: 21.12 | F11: 13% Krankenvers. Pauschal | G11: =G$7*0.13 -> 62.4
A12: Krankenversicherung | B12: 125.64 | C12: 139.94 | D12: 139.94 | F12: 2% Steuerpauschale | G12: =G$7*0.02 -> 9.6
A13: Pflegeversicherung | B13: 16.2 | C13: 18.04 | D13: 18.04 | F13: 0,9% Umlage 1 U1 | G13: =G$7*0.009 -> 4.32
A14: Umlage U1 | B14: 31.61 | C14: 35.21 | D14: 35.21 | F14: 0,29% Umlage 2 U2 | G14: =G$7*0.0029 -> 1.392
A15: Umlage U2 | B15: 5.53 | C15: 6.16 | D15: 6.16 | F15: 0,06% Umlage 3 U3 | G15: =G$7*0.0006 -> 0.288
A16: Umlage U3 | B16: 2.37 | C16: 2.64 | D16: 2.64 | F16: 1,3% Unfallversicherung | G16: =G$7*0.013 -> 6.24
A17: Unfallversicherung (BG) | B17: 25.29 | C17: 28.16 | D17: 28.16
A18: Summe Lohnnebenk. | B18: =SUM(B10:B17) -> 372.59 | C18: =SUM(C10:C17) -> 414.98 | D18: =SUM(D10:D17) -> 414.98 | F18: Summe Lohnnebenk. | G18: =SUM(G10:G16) -> 156.24
A20: Bruttolohnkosten monatl. | B20: =B7+B18 -> 1953.01 | C20: =C7+C18 -> 2175.25 | D20: =D7+D18 -> 2175.25 | F20: Bruttolohnkosten monatl. | G20: =G18+G7 -> 636.24
A21: Jahressonderzahlung | B21: =B20*0.8814 -> 1721.383014 | C21: 0 | D21: =D20*0.7435*(8/12) -> 1078.198917
A23: Bruttolohnkosten jährl. | B23: =B20*12+B21 -> 25157.50301 | C23: =C20*4+C21 -> 8701 | D23: =D20*8+D21 -> 18480.19892 | G23: =G20*(J8/40)*12 -> 86865.8472
A25: Jahresgesamtkosten | B25: =G23+B23+C23+D23 -> 139204.5491

Sheet Überprüfung Beitragserhebung
A1: Überprüfung der Beitragserhebung während des laufenden Kalenderjahres | E1: Jahr - | F1: =Deckblatt!B1 -> 2023 | J1: Wintersemester
A3: Sachkontonr.
A4: 1200 | B4: Bankbestand
A5: 1210 | B5: Bank Zinsaktiv
A6: 1220 | B6: Paypal-Konto
A7: 1000 | B7: Kassenbestände
A8: 1010 | B8: Kasse Kino-Eintritt
A9: 1020 | B9: Kasse Kino-Snack
A10: 1368&1369 | B10: Corona-Fonds (verrechnet)
A11: 1591 | B11: Semesterticket
A12: 1734 | B12: sonstige notwendige Bereinigungen (Kautionen)
B13: Geldbestand | J13: =SUM(J4:J12) -> 0
B14: Mindestreserve | J14: =-(Mindestreserve!$D$18) -> -142760
B15: Planausgaben | J15: =-('Detailblatt I'!$O$54) -> -260786
B16: nachrangig verwendbares Vorjahresbudget | J16: =-('Detailblatt I'!$P$54) -> -43690
B17: ->davon verwendet | J17: ='Detailblatt I'!$Q$54 -> 0
B18: bereinigter Geldbestand | J18: =SUM(J13:J17) -> -447236
B19: Planeinnahmen | J19: =-('Detailblatt I'!$L$54) -> 25950
B20: vorraussichtliche Beitragseinnahmen | J20: =-('Detailblatt II'!$H$23) -> 51000
B21: vorraussichtlicher bereinigter Geldbestand | J21: =SUM(J18:J20) -> -370286
B22: durch Semesterbeitrag auszugleichender Geldbestand | J22: =J18+J19 -> -421286
B23: neuer Semesterbeitrag | J23: =ROUNDUP(-(J22/'Detailblatt II'!$D$23/4*6)/5,1)*5 -> 140.5
B24: durch Semesterbeitrag auszugleichender Geldbestand bei 50% Planeinnahmen | J24: =J18+J19/2 -> -434261
B25: neuer Semesterbeitrag bei Erfüllung von 50% der Planeinnahmen | J25: =ROUNDUP(-(J24/'Detailblatt II'!$D$23/4*6)/5,1)*5 -> 145
B26: vorraussichtlicher bereinigter Geldbestand bei 50% Planeinnahmen | J26: =J24+J20 -> -383261
B27: durch Semesterbeitrag auszugleichender Geldbestand bei 25% Planeinnahmen | J27: =J18+J19/4 -> -440748.5
B28: neuer Semesterbeitrag bei Erfüllung von 25% der Planeinnahmen | J28: =ROUNDUP(-(J27/'Detailblatt II'!$D$23/4*6)/5,1)*5 -> 147
B29: vorraussichtlicher bereinigter Geldbestand bei 25% Planeinnahmen | J29: =J27+J20 -> -389748.5

Sheet fortgeschr. Mittel+Konto
A1: Fortgeschriebene finanzielle Mittel + Bankkontostand | C1: Jahr - | D1: =Deckblatt!B1 -> 2023
F2: Nr. | G2: voraussichtliche Ausgaben | I2: Saldo
B3: Position | C3: erstellt am: | D3: 2023-01-21 | F3: 1. | G3: Personal (Okt.+Nov.+Dez. inkl. 13.Gehalt, ACON, Finanzamt) | I3: =3000+700 -> 3700
B4: Bank-/Kassenbestand bei Haushaltsplanerstellung | D4: =1750+299920.8+60000+4335.39 -> 366006.19
A5: - | B5: abzgl. voraussichtliche Ausgaben in | C5: =D1-1 -> 2022 | D5: =I25*(-1) -> -93848.91 | F5: 2. | G5: Finanzbeschlüsse aktuell noch nicht bezahlt in Summe | I5: =15+50+80+100+200+145+120+15+10+10+90+90-25+9+50+15+40+150 -> 1164
A6: - | B6: nachrangig verwendbares Vorjahresbudget | D6: ='Detailblatt I'!P54*(-1)-'Detailblatt I'!Q54*(-1) -> -43690
A7: - | B7: Zurückführung an Student:innen gesamt | D7: =SUM(Deckblatt!C8:C9)*-1 -> -56450 | F7: 3. | G7: Schulungen/Konferenzen (KoSe) | I7: 0
A8: - | B8: Beitragseinnahmen anteilig WS 22/23 für 2023 | D8: ='Detailblatt II'!F21*-1 -> -35800 | F8: 4. | G8: voraussichtliche AE | I8: 6000
A9: = | B9: verfügbare finanzielle Mittel | D9: =D4+D5+D6+D7+D8 -> 136217.28 | F9: 5. | G9: offene Härtefallanträge | I9: 305
F10: 6. | G10: Software-Abos (AGENDA etc.) | I10: 0
F11: 7. | G11: Kosten für Wartung (Drucker etc.) | I11: 100
F12: 8. | G12: Kontoführung | I12: 0
F13: 9. | G13: Kino in der HTW & Co. | I13: 0
F14: 10. | G14: Kosten für Wahlen | I14: 0
F15: 11. | G15: Kaffeebestellung(en) | I15: 0
F16: 12. | G16: Ersatz- & Neuanschaffung | I16: 0
F17: 13. | G17: wahrscheinlich noch zu beschließende Finanzanträge | I17: 0
F19: 14. | G19: Semesterticket Konto 1591 & 1592 | I19: 62987.9
F21: 15. | G21: Konto 1704 | I21: 0
F22: 16. | G22: Konto 1450 (-) | I22: 0
F23: 17. | G23: Kaution 1734 | I23: 204
F24: 18. | G24: Nothilfefonds saldiert | I24: =66079.01-46691 -> 19388.01
F25: = | G25: Gesamtsumme: | I25: =SUM(I3:I24) -> 93848.91

Sheet Mindestreserve
A1: Mindestreserve | D1: Jahr - | E1: =Deckblatt!B1 -> 2023 | F1: Berechnungsgrundlage ist die aktuelle Finanzordnung (FO)
G2: - alle vertraglich festgeschriebenen Vereinbarungen müssen durch die Kapitalreserve abgedeckt sein
A3: vertragliche Vereinbarungen | D3: Planausgaben
A4: Studentinnenrat
A5: Lohnkosten (Detailblatt I - Zelle M7) | D5: ='Detailblatt I'!M6 -> 140000
A6: Korrektur für "SHK"-Stellen | D6: 0
A7: …aktuell ohne Belegung… | D7: ------
A8: …aktuell ohne Belegung… | D8: ------
A9: Referat Finanzen
A10: Kontoführungsgebühren | D10: =Finanzen!G3 -> 600
A11: Buchhaltungssoftware AGENDA | D11: =Finanzen!G4 -> 1000
A12: …aktuell ohne Belegung… | D12: ------
A13: Referat Selbstverwaltung & Organisation
A14: Domains | D14: ='Verwaltung@'!F4 -> 80
A15: laufende Kosten für Druck | D15: ='Verwaltung@'!F15 -> 400
A16: Simkarten | D16: ='Verwaltung@'!F3 -> 180
A17: Versicherung Beachvolleyballplätze | D17: ='Verwaltung@'!F6 -> 500
A18: Gesamt: | D18: =SUM(D5:E17) -> 142760

Sheet Detailblatt I
A1: Detailblatt I | E1: Jahr - | F1: =Deckblatt!B1 -> 2023 | J1: Einnahmen | M1: Ausgaben | P1: nachrangig verwendbares Vj. Budget | Q1: davon verwendet | R1: Zuführung "Fortgeschr. finanz. Mittel" | S1: Übertrag ins nächste HH-Jahr
J2: PLAN | K2: IST | L2: SALDO | M2: PLAN | N2: IST | O2: SALDO
A3: Selbstverwaltung der Studentinnenschaft HTW Dresden
A4: Sachkontonr.
A5: 2749 | B5: Angestellte | C5: AAG (Aufwendungsausgleichsgesetz) | K5: 0 | L5: =K5 -> 0
A6: 4120 | C6: Gehälter | M6: 140000 | N6: 0 | O6: =M6-SUM(N6:N11)+L5 -> 140000
A7: 4121 | C7: Lohnsteuer | N7: 0
A8: 4170 | C8: Vermögenswirksame Leistungen | N8: 0
A9: 4130 | C9: gesetzl. sozial. Aufw. | N9: 0
A10: 4138 | C10: Beitrag BG (Berufsgenossenschaft) | N10: 0
A11: 4956 | C11: Lohnbüro | N11: 0
A12: 4110 | B12: AE (Aufwandsentschädigungen) | M12: 25000 | N12: 0 | O12: =M12-N12 -> 25000
A13: 4640 | B13: Kaffee, Verpflegung & Verbrauchsgüter | M13: 1200 | N13: 0 | O13: =M13-N13 -> 1200
A14: 4670 | B14: Allgemeine Reisekosten (keiner Veranstaltung zugeordnet) | M14: 500 | N14: 0 | O14: =M14-N14 -> 500
A15: 4909 | B15: Präsidium & Vorstand der Geschäftsführung | M15: 0 | N15: 0 | O15: =M15-N15 -> 0
A16: 4930 | B16: Büro- und Verbrauchsmaterialien | M16: 100 | N16: 0 | O16: =M16-N16 -> 100 | P16: 100 | Q16: =IF(O16<0,IF(P16>0,IF((O16*(-1))>P16,P16,O16*(-1)),0),0) -> 0 | R16: =IF(OR(Q16>P16,O16+P16<0),MAKRO1(),ROUNDDOWN(P16-Q16,-1)) -> 100 | S16: =IF(O16>0,ROUNDDOWN(O16,-1),0) -> 100
A17: 4943 | B17: Teilnahme Konferenzen | M17: 1000 | N17: 0 | O17: =M17-N17 -> 1000 | P17: 690 | Q17: =IF(O17<0,IF(P17>0,IF((O17*(-1))>P17,P17,O17*(-1)),0),0) -> 0 | R17: =IF(OR(Q17>P17,O17+P17<0),MAKRO1(),ROUNDDOWN(P17-Q17,-1)) -> 690 | S17: =IF(O17>0,ROUNDDOWN(O17,-1),0) -> 1000
A18: 4944 | B18: Teilnahme Schulungen | M18: 250 | N18: 0 | O18: =M18-N18 -> 250 | P18: 250 | Q18: =IF(O18<0,IF(P18>0,IF((O18*(-1))>P18,P18,O18*(-1)),0),0) -> 0 | R18: =IF(OR(Q18>P18,O18+P18<0),MAKRO1(),ROUNDDOWN(P18-Q18,-1)) -> 250 | S18: =IF(O18>0,ROUNDDOWN(O18,-1),0) -> 250
A19: 4945 | B19: Durchführung Konferenzen | J19: ='Detailblatt II'!F19 -> 0 | K19: ='Detailblatt II'!G19 -> 0 | L19: ='Detailblatt II'!H19 -> 0 | M19: ='Detailblatt II'!I19 -> 1500 | N19: ='Detailblatt II'!J19 -> 0 | O19: ='Detailblatt II'!K19 -> 1500 | P19: ='Detailblatt II'!L19 -> 0 | Q19: ='Detailblatt II'!M19 -> 0 | R19: ='Detailblatt II'!N19 -> 0 | S19: ='Detailblatt II'!O19 -> 1500 | T19: ← Zahlen auf Detailblatt 2 ändern!
A20: 4950 | B20: Rechts- und Beratungskosten | M20: 3000 | N20: 0 | O20: =M20-N20 -> 3000 | P20: 8410 | Q20: =IF(O20<0,IF(P20>0,IF((O20*(-1))>P20,P20,O20*(-1)),0),0) -> 0 | R20: =IF(OR(Q20>P20,O20+P20<0),MAKRO1(),ROUNDDOWN(P20-Q20,-1)) -> 8410 | S20: =IF(O20>0,ROUNDDOWN(O20,-1),0) -> 3000
A21: 4989 | B21: Ersatz- und Neuanschaffung | M21: 3000 | N21: 0 | O21: =M21-N21 -> 3000 | P21: 1470 | Q21: =IF(O21<0,IF(P21>0,IF((O21*(-1))>P21,P21,O21*(-1)),0),0) -> 0 | R21: =IF(OR(Q21>P21,O21+P21<0),MAKRO1(),ROUNDDOWN(P21-Q21,-1)) -> 1470 | S21: =IF(O21>0,ROUNDDOWN(O21,-1),0) -> 3000
A22: Zwischensumme: | J22: =SUM(J5:J21) -> 0 | K22: =SUM(K5:K21) -> 0 | L22: =SUM(L5:L21) -> 0 | M22: =SUM(M5:M21) -> 175550 | N22: =SUM(N5:N21) -> 0 | O22: =SUM(O5:O21) -> 175550 | P22: =SUM(P16:P21) -> 10920 | Q22: =SUM(Q16:Q21) -> 0 | R22: =SUM(R16:R21) -> 10920 | S22: =SUM(S16:S21) -> 8850
A23: Referate
A24: 4960 | B24: Finanzen | J24: =Finanzen!D7 -> 0 | K24: =Finanzen!E7 -> 0 | L24: =K24-J24 -> 0 | M24: =Finanzen!G7 -> 2850 | N24: =Finanzen!H7 -> 0 | O24: =M24-N24 -> 2850
A25: 4961 | B25: Hochschulpolitik | J25: =Hochschulpolitik!C8 -> 0 | K25: =Hochschulpolitik!D8 -> 0 | L25: =K25-J25 -> 0 | M25: =Hochschulpolitik!F8 -> 1000 | N25: =Hochschulpolitik!G8 -> 0 | O25: =M25-N25 -> 1000 | P25: =Hochschulpolitik!I8 -> 100 | Q25: =Hochschulpolitik!J8 -> 0 | R25: =Hochschulpolitik!K8 -> 100 | S25: =Hochschulpolitik!L8 -> 1000
A26: 4962 | B26: Internationales | J26: =Internationales!C5 -> 0 | K26: =Internationales!D5 -> 0 | L26: =K26-J26 -> 0 | M26: =Internationales!F5 -> 300 | N26: =Internationales!G5 -> 0 | O26: =M26-N26 -> 300 | P26: =Internationales!I5 -> 50 | Q26: =Internationales!J5 -> 0 | R26: =Internationales!K5 -> 50 | S26: =Internationales!L5 -> 50
A27: 4963 | B27: Kultur | J27: =Kultur!C15 -> 19750 | K27: =Kultur!D15 -> 0 | L27: =K27-J27 -> -19750 | M27: =Kultur!F15 -> 21600 | N27: =Kultur!G15 -> 0 | O27: =M27-N27 -> 21600 | P27: =Kultur!I15 -> 8800 | Q27: =Kultur!J15 -> 0 | R27: =Kultur!K15 -> 8800 | S27: =Kultur!L15 -> 21350
A28: 4964 | B28: Öffentlichkeitsarbeit | J28: =Öffentlichkeitsarbeit!C9 -> 500 | K28: =Öffentlichkeitsarbeit!D9 -> 0 | L28: =K28-J28 -> -500 | M28: =Öffentlichkeitsarbeit!F9 -> 8100 | N28: =Öffentlichkeitsarbeit!G9 -> 0 | O28: =M28-N28 -> 8100 | P28: =Öffentlichkeitsarbeit!I9 -> 1220 | Q28: =Öffentlichkeitsarbeit!J9 -> 0 | R28: =Öffentlichkeitsarbeit!K9 -> 1220 | S28: =Öffentlichkeitsarbeit!L9 -> 5850
A29: 4965 | B29: Qualitätsmanagement | J29: =Qualitätsmanagement!C7 -> 0 | K29: =Qualitätsmanagement!D7 -> 0 | L29: =K29-J29 -> 0 | M29: =Qualitätsmanagement!F7 -> 1500 | N29: =Qualitätsmanagement!G7 -> 0 | O29: =M29-N29 -> 1500 | P29: =Qualitätsmanagement!I7 -> 310 | Q29: =Qualitätsmanagement!J7 -> 0 | R29: =Qualitätsmanagement!K7 -> 310 | S29: =Qualitätsmanagement!L7 -> 1250
A30: 4966 | B30: Soziales | J30: =Soziales!C7 -> 0 | K30: =Soziales!D7 -> 0 | L30: =K30-J30 -> 0 | M30: =Soziales!F7 -> 600 | N30: =Soziales!G7 -> 0 | O30: =M30-N30 -> 600 | P30: =Soziales!I7 -> 350 | Q30: =Soziales!J7 -> 0 | R30: =Soziales!K7 -> 350 | S30: =Soziales!L7 -> 350
A31: 4967 | B31: Sport | J31: =Sport!C12 -> 2200 | K31: =Sport!D12 -> 0 | L31: =K31-J31 -> -2200 | M31: =Sport!F12 -> 4250 | N31: =Sport!G12 -> 0 | O31: =M31-N31 -> 4250 | P31: =Sport!I12 -> 3910 | Q31: =Sport!J12 -> 0 | R31: =Sport!K12 -> 3910 | S31: =Sport!L12 -> 4000
A32: 4968 | B32: Studium | J32: =Studium!C7 -> 0 | K32: =Studium!D7 -> 0 | L32: =K32-J32 -> 0 | M32: =Studium!F7 -> 1500 | N32: =Studium!G7 -> 0 | O32: =M32-N32 -> 1500 | P32: =Studium!I7 -> 1250 | Q32: =Studium!J7 -> 0 | R32: =Studium!K7 -> 1250 | S32: =Studium!L7 -> 1250
A33: 4969 | B33: Studentische Selbstverwaltung & Organisation | J33: ='Verwaltung@'!C18 -> 3500 | K33: ='Verwaltung@'!D18 -> 0 | L33: =K33-J33 -> -3500 | M33: ='Verwaltung@'!F18 -> 23236 | N33: ='Verwaltung@'!G18 -> 0 | O33: =M33-N33 -> 23236 | P33: ='Verwaltung@'!I18 -> 11150 | Q33: ='Verwaltung@'!J18 -> 0 | R33: ='Verwaltung@'!K18 -> 11150 | S33: ='Verwaltung@'!L18 -> 22480
A34: 4946 | B34: Personal | J34: =Personal!C18 -> 0 | K34: =Personal!D18 -> 0 | L34: =K34-J34 -> 0 | M34: =Personal!F18 -> 5850 | N34: =Personal!G18 -> 0 | O34: =M34-N34 -> 5850 | P34: =Personal!I18 -> 3560 | Q34: =Personal!J18 -> 0 | R34: =Personal!K18 -> 3560 | S34: =Personal!L18 -> 5600
A35: ---- | B35: Ausschüsse des Studentinnenrates | J35: 0 | K35: 0 | L35: =K35-J35 -> 0 | M35: 0 | N35: 0 | O35: =M35-N35 -> 0
A36: ---- | B36: weitere Vertretungen | J36: 0 | K36: 0 | L36: =K36-J36 -> 0 | M36: 0 | N36: 0 | O36: =M36-N36 -> 0
A37: Zwischensumme: | J37: =SUM(J24:J36) -> 25950 | K37: =SUM(K24:K36) -> 0 | L37: =SUM(L24:L36) -> -25950 | M37: =SUM(M24:M36) -> 70786 | N37: =SUM(N24:N36) -> 0 | O37: =SUM(O24:O36) -> 70786 | P37: =SUM(P25:P34) -> 30700 | Q37: =SUM(Q25:Q34) -> 0 | R37: =SUM(R25:R34) -> 30700 | S37: =SUM(S25:S34) -> 63180
A38: Ausschüsse der Studentinnenschaft
A39: ---- | B39: weitere Ausschüsse der Studentinnenschaft | M39: 0 | N39: 0 | O39: =M39-N39 -> 0
A40: ---- | B40: Wahlausschuss der Studentinnenschaft | M40: 0 | N40: 0 | O40: =M40-N40 -> 0
A41: 4941 | B41: HFA (Härtefallausschuss der Studentinnenschaft) | M41: 3100 | N41: 0 | O41: =M41-N41 -> 3100
A42: Zwischensumme: | M42: =SUM(M39:M41) -> 3100 | N42: =SUM(N39:N41) -> 0 | O42: =SUM(O39:O41) -> 3100
A44: Anzahl der Student:innen im: | F44: WiSe | G44: 23/24 | H44: SoSe | I44: 23
A45: gesamt: | F45: ='Detailblatt II'!D23 -> 4500 | H45: ='Detailblatt II'!D22 -> 4250
A46: #4942 Absicherung Teilnahme BuFaTas lt. Finanzordnung: | I46: 0.5 | M46: =ROUND(($F$45+$H$45)*$I$46,-2) -> 4400 | N46: 0 | O46: =M46-N46 -> 4400 | P46: 2070 | Q46: =IF(O46<0,IF(P46>0,IF((O46*(-1))>P46,P46,O46*(-1)),0),0) -> 0 | R46: =IF(OR(Q46>P46,O46+P46<0),MAKRO1(),ROUNDDOWN(P46-Q46,-1)) -> 2070 | S46: =IF(O46>0,ROUNDDOWN(O46,-1),0) -> 4400
A47: Zwischensumme: | M47: =SUM(M46:M46) -> 4400 | N47: =SUM(N46:N46) -> 0 | O47: =SUM(O46:O46) -> 4400 | P47: =SUM(P46:P46) -> 2070 | Q47: =SUM(Q46:Q46) -> 0 | R47: =SUM(R46:R46) -> 2070 | S47: =SUM(S46:S46) -> 4400
A48: Vertretungen der Student:innen
A49: ---- | B49: Vertretungen der Student:innen in der Hochschule | M49: 0 | N49: 0 | O49: =M49-N49 -> 0
A50: ---- | B50: Konferenz Sächsischer Studierendenschaft | M50: ='Detailblatt II'!I6 -> 2100 | N50: ='Detailblatt II'!J6 -> 0 | O50: =M50-N50 -> 2100
A51: ---- | B51: Interessenvertretungen der Studentinnenschaft | M51: ='Detailblatt II'!I14 -> 4850 | N51: ='Detailblatt II'!J14 -> 0 | O51: =M51-N51 -> 4850
A52: ---- | B52: weitere Interessenvertetungen | M52: 0 | N52: 0 | O52: =M52-N52 -> 0
A53: Zwischensumme: | M53: =SUM(M49:M52) -> 6950 | N53: =SUM(N49:N52) -> 0 | O53: =SUM(O49:O52) -> 6950
A54: Gesamtsumme: | J54: =SUM(J53,J47,J42,J37,J22) -> 25950 | K54: =SUM(K53,K47,K42,K37,K22) -> 0 | L54: =SUM(L53,L47,L42,L37,L22) -> -25950 | M54: =SUM(M53,M47,M42,M37,M22) -> 260786 | N54: =SUM(N53,N47,N42,N37,N22) -> 0 | O54: =SUM(O53,O47,O42,O37,O22) -> 260786 | P54: =SUM(P22,P37,P47,P42,P53) -> 43690 | Q54: =SUM(Q47,Q37,Q22,Q42,Q53) -> 0 | R54: =SUM(R47,R37,R22,R42,R53) -> 43690 | S54: =SUM(S47,S37,S22,S42,S53) -> 76430

Sheet Detailblatt II
A1: Detailblatt II | B1: Jahr - | C1: =Deckblatt!B1 -> 2023 | E1: Häufigkeit | F1: Einnahmen | I1: Ausgaben | L1: nachrangig verwendbares Vj. Budget | M1: davon verwendet | N1: Zuführung "Fortgeschr. finanz. Mittel" | O1: Übertrag ins nächste HH-Jahr | P1: §5 Abs.4 S.2 FO
F2: PLAN | G2: IST | H2: SALDO | I2: PLAN | J2: IST | K2: SALDO
A3: Konferenz Sächsischer Studierendenschaften - Konto: 4981
A4: Finanzvereinbarung | E4: 1 | F4: 0 | G4: 0 | H4: =G4-F4 -> 0 | I4: 1450 | J4: 0 | K4: =I4-J4 -> 1450
A5: Förderung der KSS (so auch Domain kss-sachsen.de) | E5: 1 | F5: 0 | G5: 0 | H5: =G5-F5 -> 0 | I5: 650 | J5: 0 | K5: =I5-J5 -> 650
D6: Zwischensumme: | F6: =SUM(F4:F5) -> 0 | G6: =SUM(G4:G5) -> 0 | H6: =SUM(H4:H5) -> 0 | I6: =SUM(I4:I5) -> 2100 | J6: =SUM(J4:J5) -> 0 | K6: =SUM(K4:K5) -> 2100
A7: Interessenvertretungen der Student:innenschaften - Konto: 4982
A8: faranto e.V. | F8: 0 | G8: 0 | H8: =G8-F8 -> 0 | I8: 800 | J8: 0 | K8: =I8-J8 -> 800
A9: Erasmus Student Network | F9: 0 | G9: 0 | H9: =G9-F9 -> 0 | I9: 400 | J9: 0 | K9: =I9-J9 -> 400
A10: bundesweite Interessenvertretungen (z.B. fzs etc.) | E10: 1 | F10: 0 | G10: 0 | H10: =G10-F10 -> 0 | I10: 3500 | J10: 0 | K10: =I10-J10 -> 3500
A11: Bundesverband Ausländischer Studierender e.V. | E11: 1 | F11: 0 | G11: 0 | H11: =G11-F11 -> 0 | I11: 100 | J11: 0 | K11: =I11-J11 -> 100
A12: Deustcher Akademischer AustauschDienst e.V. | E12: 1 | F12: 0 | G12: 0 | H12: 0 | I12: 50 | J12: 0 | K12: =I12-J12 -> 50
A13: weitere (ABS, bpm ) | F13: 0 | G13: 0 | H13: =G13-F13 -> 0 | I13: 0 | J13: 0 | K13: =I13-J13 -> 0
D14: Zwischensumme: | F14: =SUM(F8:F13) -> 0 | G14: =SUM(G8:G13) -> 0 | H14: =SUM(H8:H13) -> 0 | I14: =SUM(I8:I13) -> 4850 | J14: =SUM(J8:J13) -> 0 | K14: =SUM(K8:K13) -> 4850
A15: Durchführung Konferenzen - Konto: 4945
A16: O.S.T. Offenes Studierendentreffen (Bereich Bund/Land) /Hochschulpolitik | E16: 1 | F16: 0 | G16: 0 | H16: =G16-F16 -> 0 | I16: 500 | J16: 0 | K16: =I16-J16 -> 500 | L16: 0 | M16: =IF(K16<0,IF(L16>0,IF((K16*(-1))>L16,L16,K16*(-1)),0),0) -> 0 | N16: =IF(OR(M16>L16,K16+L16<0),MAKRO1(),ROUNDDOWN(L16-M16,-1)) -> 0 | O16: =IF(K16>0,ROUNDDOWN(K16,-1),0) -> 500 | P16: =(G16-J16+M16)-(F16-I16) -> 500
A17: BuFaTa | F17: 0 | G17: 0 | H17: =G17-F17 -> 0 | I17: 0 | J17: 0 | K17: =I17-J17 -> 0 | L17: 0 | M17: =IF(K17<0,IF(L17>0,IF((K17*(-1))>L17,L17,K17*(-1)),0),0) -> 0 | N17: =IF(OR(M17>L17,K17+L17<0),MAKRO1(),ROUNDDOWN(L17-M17,-1)) -> 0 | O17: =IF(K17>0,ROUNDDOWN(K17,-1),0) -> 0 | P17: =(G17-J17+M17)-(F17-I17) -> 0
A18: weitere Konferenzen | F18: 0 | G18: 0 | H18: =G18-F18 -> 0 | I18: 1000 | J18: 0 | K18: =I18-J18 -> 1000 | L18: 0 | M18: =IF(K18<0,IF(L18>0,IF((K18*(-1))>L18,L18,K18*(-1)),0),0) -> 0 | N18: =IF(OR(M18>L18,K18+L18<0),MAKRO1(),ROUNDDOWN(L18-M18,-1)) -> 0 | O18: =IF(K18>0,ROUNDDOWN(K18,-1),0) -> 1000
D19: Zwischensumme: | F19: =SUM(F16:F18) -> 0 | G19: =SUM(G16:G18) -> 0 | H19: =SUM(H16:H18) -> 0 | I19: =SUM(I16:I18) -> 1500 | J19: =SUM(J16:J18) -> 0 | K19: =SUM(K16:K18) -> 1500 | L19: =SUM(L16:L18) -> 0 | M19: =SUM(M16:M18) -> 0 | N19: =SUM(N16:N18) -> 0 | O19: =SUM(O16:O18) -> 1500 | P19: =(G19-J19+M19)-(F19-I19) -> 1500
A20: Beitragseinnahmen
A21: Anteilig WS 22/23 | B21: 23 | C21: x Studentinnen | D21: 4666 | E21: 1 | F21: =ROUND((($B$21*$D$21)/6)*2,-2) -> 35800 | G21: 26710.67 | H21: =G21-F21 -> -9089.33 | I21: 0 | J21: 0 | K21: =I21-J21 -> 0
A22: SoSe 23 | B22: 23 | D22: 4250 | E22: 1 | F22: =ROUND($B$22*$D$22,-2) -> 97800 | G22: 0 | H22: =G22-F22 -> -97800 | I22: 0 | J22: 0 | K22: =I22-J22 -> 0
A23: Anteilig WS 23/24 | B23: 17 | D23: 4500 | E23: 1 | F23: =ROUND((($B$23*$D$23)/6)*4,-2) -> 51000 | G23: 0 | H23: =G23-F23 -> -51000 | I23: 0 | J23: 0 | K23: =I23-J23 -> 0
D24: Zwischensumme: | F24: =SUM(F21:F23) -> 184600 | G24: =SUM(G21:G23) -> 26710.67 | H24: =SUM(H21:H23) -> -157889.33 | I24: =SUM(I21:I23) -> 0 | J24: =SUM(J21:J23) -> 0 | K24: =SUM(K21:K23) -> 0
A25: Vermögen
A26: Verfügbare finanzielle Mittel | F26: ='fortgeschr. Mittel+Konto'!D9 -> 136217.28 | H26: =G26-F26 -> -136217.28 | I26: 0 | J26: 0 | K26: =I26-J26 -> 0
A27: angeordnete Vermögensänderung lt. FO | F27: =Deckblatt!C7 -> 0 | H27: =G27-F27 -> 0 | I27: =IF(F26<Mindestreserve!D18,Mindestreserve!D18-F26,0) -> 6542.72 | K27: =I27-J27 -> 6542.72
A28: Zinsen auf Vermögen | F28: 0 | G28: 0 | H28: =G28-F28 -> 0 | I28: 0 | J28: 0 | K28: =I28-J28 -> 0
A29: geplante Veränderung des Vermögens Ansparen/Entnahme | F29: =Deckblatt!C6*(-1) -> -328.72 | G29: 0 | H29: =G29-F29 -> 328.72 | I29: =Deckblatt!F6 -> 0 | J29: 0 | K29: =I29-J29 -> 0
D30: Zwischensumme: | F30: =SUM(F26:F29) -> 135888.56 | G30: =SUM(G26:G29) -> 0 | H30: =SUM(H26:H29) -> -135888.56 | I30: =SUM(I26:I29) -> 6542.72 | J30: =SUM(J26:J29) -> 0 | K30: =SUM(K26:K29) -> 6542.72
A31: Gesamtsumme: | F31: =SUM(F24,F19,F14,F6) -> 184600 | G31: =SUM(G24,G19,G14,G6) -> 26710.67 | H31: =SUM(H24,H19,H14,H6) -> -157889.33 | I31: =SUM(I24,I19,I14,I6) -> 8450 | J31: =SUM(J24,J19,J14,J6) -> 0 | K31: =SUM(K24,K19,K14,K6) -> 8450 | L31: =SUM(L24,L19,L14,L6) -> 0 | M31: =SUM(M24,M19,M14,M6) -> 0 | N31: =SUM(N24,N19,N14,N6) -> 0 | O31: =SUM(O24,O19,O14,O6) -> 1500 | P31: =(G31-J31+M31)-(F31-I31) -> -149439.33

Sheet Finanzen
A1: Referat Finanzen | C1: Häufigkeit | D1: Einnahmen | G1: Ausgaben
D2: PLAN | E2: IST | F2: SALDO | G2: PLAN | H2: IST | I2: SALDO
A3: Kontoführung mit online-banking | B3: Sachkonto: 4970 | C3: 12 | D3: 0 | E3: 0 | F3: =E3-D3 -> 0 | G3: 600 | H3: 0 | I3: =G3-H3 -> 600
A4: Buchhaltungssoftware AGENDA | B4: Sachkonto: 4955 | C4: 12 | D4: 0 | E4: 0 | F4: =E4-D4 -> 0 | G4: 1000 | H4: 0 | I4: =G4-H4 -> 1000
A5: Nebenkosten Zahlungsverkehr | D5: 0 | E5: 0 | F5: 0 | G5: 1000 | H5: 0 | I5: =G5-H5 -> 1000
A6: CoCo-Pauschale | D6: 0 | E6: 0 | F6: =E6-D6 -> 0 | G6: 250 | H6: 0 | I6: =G6-H6 -> 250
A7: Gesamtsumme: | D7: =SUM(D3:D6) -> 0 | E7: =SUM(E3:E6) -> 0 | F7: =SUM(F3:F6) -> 0 | G7: =SUM(G3:G6) -> 2850 | H7: =SUM(H3:H6) -> 0 | I7: =SUM(I3:I6) -> 2850

Sheet Hochschulpolitik
A1: Referat Hochschulpolitik | B1: Häufigkeit | C1: Einnahmen | F1: Ausgaben | I1: nachrangig verwendbares Vj. Budget | J1: davon verwendet | K1: Zuführung "Fortgeschr. finanz. Mittel" | L1: Übertrag ins nächste HH-Jahr | M1: §5 Abs.4 S.2 FO
C2: PLAN | D2: IST | E2: SALDO | F2: PLAN | G2: IST | H2: SALDO
A3: Aktionstage gegen Sexismus und Homophobie | B3: 1 | C3: 0 | D3: 0 | E3: =D3-C3 -> 0 | F3: 100 | G3: 0 | H3: =F3-G3 -> 100 | I3: 0 | J3: =IF(H3<0,IF(I3>0,IF((H3*(-1))>I3,I3,H3*(-1)),0),0) -> 0 | K3: =IF(OR(J3>I3,H3+I3<0),MAKRO1(),ROUNDDOWN(I3-J3,-1)) -> 0 | L3: =IF(H3>0,ROUNDDOWN(H3,-1),0) -> 100 | M3: =(D3-G3+J3)-(C3-F3) -> 100
A4: Aktionen, Festivals und Demonstrationen | C4: 0 | D4: 0 | E4: =D4-C4 -> 0 | F4: 250 | G4: 0 | H4: =F4-G4 -> 250 | I4: 100 | J4: =IF(H4<0,IF(I4>0,IF((H4*(-1))>I4,I4,H4*(-1)),0),0) -> 0 | K4: =IF(OR(J4>I4,H4+I4<0),MAKRO1(),ROUNDDOWN(I4-J4,-1)) -> 100 | L4: =IF(H4>0,ROUNDDOWN(H4,-1),0) -> 250 | M4: =(D4-G4+J4)-(C4-F4) -> 250
A5: Förderverein HTW Dresden - Mitgliedsbeitrag | B5: 1 | C5: 0 | D5: 0 | E5: =D5-C5 -> 0 | F5: 150 | G5: 0 | H5: =F5-G5 -> 150 | I5: 0 | J5: =IF(H5<0,IF(I5>0,IF((H5*(-1))>I5,I5,H5*(-1)),0),0) -> 0 | K5: =IF(OR(J5>I5,H5+I5<0),MAKRO1(),ROUNDDOWN(I5-J5,-1)) -> 0 | L5: =IF(H5>0,ROUNDDOWN(H5,-1),0) -> 150 | M5: =(D5-G5+J5)-(C5-F5) -> 150
A6: politische Bildung / Umweltbildung | C6: 0 | D6: 0 | E6: =D6-C6 -> 0 | F6: 250 | G6: 0 | H6: =F6-G6 -> 250 | I6: 0 | J6: =IF(H6<0,IF(I6>0,IF((H6*(-1))>I6,I6,H6*(-1)),0),0) -> 0 | K6: =IF(OR(J6>I6,H6+I6<0),MAKRO1(),ROUNDDOWN(I6-J6,-1)) -> 0 | L6: =IF(H6>0,ROUNDDOWN(H6,-1),0) -> 250 | M6: =(D6-G6+J6)-(C6-F6) -> 250
A7: CoCo-Pauschale | C7: 0 | D7: 0 | E7: =D7-C7 -> 0 | F7: 250 | G7: 0 | H7: =F7-G7 -> 250 | J7: =IF(H7<0,IF(I7>0,IF((H7*(-1))>I7,I7,H7*(-1)),0),0) -> 0 | K7: =IF(OR(J7>I7,H7+I7<0),MAKRO1(),ROUNDDOWN(I7-J7,-1)) -> 0 | L7: =IF(H7>0,ROUNDDOWN(H7,-1),0) -> 250
A8: Gesamtsumme: | C8: =SUM(C3:C7) -> 0 | D8: =SUM(D3:D7) -> 0 | E8: =SUM(E3:E7) -> 0 | F8: =SUM(F3:F7) -> 1000 | G8: =SUM(G3:G7) -> 0 | H8: =SUM(H3:H7) -> 1000 | I8: =SUM(I3:I7) -> 100 | J8: =SUM(J3:J7) -> 0 | K8: =SUM(K3:K7) -> 100 | L8: =SUM(L3:L7) -> 1000 | M8: =(D8-G8+J8)-(C8-F8) -> 1000

Sheet Internationales
A1: Referat Internationales | B1: Häufigkeit | C1: Einnahmen | F1: Ausgaben | I1: nachrangig verwendbares Vj. Budget | J1: davon verwendet | K1: Zuführung "Fortgeschr. finanz. Mittel" | L1: Übertrag ins nächste HH-Jahr | M1: §5 Abs.4 S.2 FO
C2: PLAN | D2: IST | E2: SALDO | F2: PLAN | G2: IST | H2: SALDO
A3: Internationaler Tag | B3: 1 | C3: 0 | D3: 0 | E3: =D3-C3 -> 0 | F3: 50 | G3: 0 | H3: =F3-G3 -> 50 | I3: 50 | J3: =IF(H3<0,IF(I3>0,IF((H3*(-1))>I3,I3,H3*(-1)),0),0) -> 0 | K3: =IF(OR(J3>I3,H3+I3<0),MAKRO1(),ROUNDDOWN(I3-J3,-1)) -> 50 | L3: =IF(H3>0,ROUNDDOWN(H3,-1),0) -> 50 | M3: =(D3-G3+J3)-(C3-F3) -> 50
A4: CoCo-Pauschale | C4: 0 | D4: 0 | E4: =D4-C4 -> 0 | F4: 250 | G4: 0 | H4: =F4-G4 -> 250
A5: Gesamtsumme: | C5: =SUM(C3:C4) -> 0 | D5: =SUM(D3:D4) -> 0 | E5: =SUM(E3:E4) -> 0 | F5: =SUM(F3:F4) -> 300 | G5: =SUM(G3:G4) -> 0 | H5: =SUM(H3:H4) -> 300 | I5: =SUM(I3:I4) -> 50 | J5: =SUM(J3:J4) -> 0 | K5: =SUM(K3:K4) -> 50 | L5: =SUM(L3:L4) -> 50 | M5: =(D5-G5+J5)-(C5-F5) -> 300

Sheet Kultur
A1: Referat Kultur | B1: Häufigkeit | C1: Einnahmen | F1: Ausgaben | I1: nachrangig verwendbares Vj. Budget | J1: davon verwendet | K1: Zuführung "Fortgeschr. finanz. Mittel" | L1: Übertrag ins nächste HH-Jahr | M1: §5 Abs.4 S.2 FO
C2: PLAN | D2: IST | E2: SALDO | F2: PLAN | G2: IST | H2: SALDO
A3: Kino in der Hochschule | C3: 800 | D3: 0 | E3: =D3-C3 -> -800 | F3: 800 | G3: 0 | H3: =F3-G3 -> 800 | I3: 180 | J3: =IF(H3<0,IF(I3>0,IF((H3*(-1))>I3,I3,H3*(-1)),0),0) -> 0 | K3: =IF(OR(J3>I3,H3+I3<0),MAKRO1(),ROUNDDOWN(I3-J3,-1)) -> 180 | L3: =IF(H3>0,ROUNDDOWN(H3,-1),0) -> 800 | M3: =(D3-G3+J3)-(C3-F3) -> 0
A4: Erstifahrten | C4: 3500 | D4: 0 | E4: =D4-C4 -> -3500 | F4: 4000 | G4: 0 | H4: =F4-G4 -> 4000 | I4: 0 | J4: =IF(H4<0,IF(I4>0,IF((H4*(-1))>I4,I4,H4*(-1)),0),0) -> 0 | K4: =IF(OR(J4>I4,H4+I4<0),MAKRO1(),ROUNDDOWN(I4-J4,-1)) -> 0 | L4: =IF(H4>0,ROUNDDOWN(H4,-1),0) -> 4000 | M4: =(D4-G4+J4)-(C4-F4) -> 500
A5: Semestereröffnungspartys (SEP) | B5: 2 | C5: 3000 | D5: 0 | E5: =D5-C5 -> -3000 | F5: 3000 | G5: 0 | H5: =F5-G5 -> 3000 | I5: 0 | J5: =IF(H5<0,IF(I5>0,IF((H5*(-1))>I5,I5,H5*(-1)),0),0) -> 0 | K5: =IF(OR(J5>I5,H5+I5<0),MAKRO1(),ROUNDDOWN(I5-J5,-1)) -> 0 | L5: =IF(H5>0,ROUNDDOWN(H5,-1),0) -> 3000 | M5: =(D5-G5+J5)-(C5-F5) -> 0
A6: Semesterabsch(l)ussfeier (SAF) | B6: 2 | C6: 2600 | D6: 0 | E6: =D6-C6 -> -2600 | F6: 2600 | G6: 0 | H6: =F6-G6 -> 2600 | I6: 1120 | J6: =IF(H6<0,IF(I6>0,IF((H6*(-1))>I6,I6,H6*(-1)),0),0) -> 0 | K6: =IF(OR(J6>I6,H6+I6<0),MAKRO1(),ROUNDDOWN(I6-J6,-1)) -> 1120 | L6: =IF(H6>0,ROUNDDOWN(H6,-1),0) -> 2600 | M6: =(D6-G6+J6)-(C6-F6) -> 0
A7: Bergfeste | C7: 1000 | D7: 0 | E7: =D7-C7 -> -1000 | F7: 1000 | G7: 0 | H7: =F7-G7 -> 1000 | I7: 0 | J7: =IF(H7<0,IF(I7>0,IF((H7*(-1))>I7,I7,H7*(-1)),0),0) -> 0 | K7: =IF(OR(J7>I7,H7+I7<0),MAKRO1(),ROUNDDOWN(I7-J7,-1)) -> 0 | L7: =IF(H7>0,ROUNDDOWN(H7,-1),0) -> 1000 | M7: =(D7-G7+J7)-(C7-F7) -> 0
A8: Weihnachtsfeiern | C8: 3000 | D8: 0 | E8: =D8-C8 -> -3000 | F8: 3500 | G8: 0 | H8: =F8-G8 -> 3500 | I8: 3020 | J8: =IF(H8<0,IF(I8>0,IF((H8*(-1))>I8,I8,H8*(-1)),0),0) -> 0 | K8: =IF(OR(J8>I8,H8+I8<0),MAKRO1(),ROUNDDOWN(I8-J8,-1)) -> 3020 | L8: =IF(H8>0,ROUNDDOWN(H8,-1),0) -> 3500 | M8: =(D8-G8+J8)-(C8-F8) -> 500
A9: Fakultätsfeste & Sommerfeste | C9: 3500 | D9: 0 | E9: =D9-C9 -> -3500 | F9: 4000 | G9: 0 | H9: =F9-G9 -> 4000 | I9: 2240 | J9: =IF(H9<0,IF(I9>0,IF((H9*(-1))>I9,I9,H9*(-1)),0),0) -> 0 | K9: =IF(OR(J9>I9,H9+I9<0),MAKRO1(),ROUNDDOWN(I9-J9,-1)) -> 2240 | L9: =IF(H9>0,ROUNDDOWN(H9,-1),0) -> 4000 | M9: =(D9-G9+J9)-(C9-F9) -> 500
A10: LAN-Partys | C10: 750 | D10: 0 | E10: =D10-C10 -> -750 | F10: 750 | G10: 0 | H10: =F10-G10 -> 750 | I10: 540 | J10: =IF(H10<0,IF(I10>0,IF((H10*(-1))>I10,I10,H10*(-1)),0),0) -> 0 | K10: =IF(OR(J10>I10,H10+I10<0),MAKRO1(),ROUNDDOWN(I10-J10,-1)) -> 540 | L10: =IF(H10>0,ROUNDDOWN(H10,-1),0) -> 750 | M10: =(D10-G10+J10)-(C10-F10) -> 0
A11: Musikveranstaltung | B11: 1 | C11: 500 | D11: 0 | E11: =D11-C11 -> -500 | F11: 500 | G11: 0 | H11: =F11-G11 -> 500 | I11: 500 | J11: =IF(H11<0,IF(I11>0,IF((H11*(-1))>I11,I11,H11*(-1)),0),0) -> 0 | K11: =IF(OR(J11>I11,H11+I11<0),MAKRO1(),ROUNDDOWN(I11-J11,-1)) -> 500 | L11: =IF(H11>0,ROUNDDOWN(H11,-1),0) -> 500 | M11: =(D11-G11+J11)-(C11-F11) -> 0
A12: Spieleabende | B12: 2 | C12: 0 | D12: 0 | E12: =D12-C12 -> 0 | F12: 100 | G12: 0 | H12: =F12-G12 -> 100 | I12: 100 | J12: =IF(H12<0,IF(I12>0,IF((H12*(-1))>I12,I12,H12*(-1)),0),0) -> 0 | K12: =IF(OR(J12>I12,H12+I12<0),MAKRO1(),ROUNDDOWN(I12-J12,-1)) -> 100 | L12: =IF(H12>0,ROUNDDOWN(H12,-1),0) -> 100 | M12: =(D12-G12+J12)-(C12-F12) -> 100
A13: Vernetzung von Student:innen der Hochschule | C13: 1100 | D13: 0 | E13: =D13-C13 -> -1100 | F13: 1100 | G13: 0 | H13: =F13-G13 -> 1100 | I13: 1100 | J13: =IF(H13<0,IF(I13>0,IF((H13*(-1))>I13,I13,H13*(-1)),0),0) -> 0 | K13: =IF(OR(J13>I13,H13+I13<0),MAKRO1(),ROUNDDOWN(I13-J13,-1)) -> 1100 | L13: =IF(H13>0,ROUNDDOWN(H13,-1),0) -> 1100 | M13: =(D13-G13+J13)-(C13-F13) -> 0
A14: CoCo-Pauschale | C14: 0 | D14: 0 | E14: =D14-C14 -> 0 | F14: 250 | G14: 0 | H14: =F14-G14 -> 250
A15: Gesamtsumme: | C15: =SUM(C3:C14) -> 19750 | D15: =SUM(D3:D14) -> 0 | E15: =SUM(E3:E14) -> -19750 | F15: =SUM(F3:F14) -> 21600 | G15: =SUM(G3:G14) -> 0 | H15: =SUM(H3:H14) -> 21600 | I15: =SUM(I3:I14) -> 8800 | J15: =SUM(J3:J14) -> 0 | K15: =SUM(K3:K14) -> 8800 | L15: =SUM(L3:L14) -> 21350 | M15: =(D15-G15+J15)-(C15-F15) -> 1850

Sheet Öffentlichkeitsarbeit
A1: Referat Öffentlichkeitsarbeit | B1: Häufigkeit | C1: Einnahmen | F1: Ausgaben | I1: nachrangig verwendbares Vj. Budget | J1: davon verwendet | K1: Zuführung "Fortgeschr. finanz. Mittel" | L1: Übertrag ins nächste HH-Jahr | M1: §5 Abs.4 S.2 FO
C2: PLAN | D2: IST | E2: SALDO | F2: PLAN | G2: IST | H2: SALDO
A3: Hochschulveranstaltungen (Dies Academicus, Tag der offenen Tür, etc.) | C3: 0 | D3: 0 | E3: =D3-C3 -> 0 | F3: 500 | G3: 0 | H3: =F3-G3 -> 500 | I3: 500 | J3: =IF(H3<0,IF(I3>0,IF((H3*(-1))>I3,I3,H3*(-1)),0),0) -> 0 | K3: =IF(OR(J3>I3,H3+I3<0),MAKRO1(),ROUNDDOWN(I3-J3,-1)) -> 500 | L3: =IF(H3>0,ROUNDDOWN(H3,-1),0) -> 500 | M3: =(D3-G3+J3)-(C3-F3) -> 500
A4: Werbemittel (Kulis, Beutel, Plakate, T-Shirts etc.) | C4: 0 | D4: 0 | E4: =D4-C4 -> 0 | F4: 4600 | G4: 0 | H4: =F4-G4 -> 4600 | I4: 0 | J4: =IF(H4<0,IF(I4>0,IF((H4*(-1))>I4,I4,H4*(-1)),0),0) -> 0 | K4: =IF(OR(J4>I4,H4+I4<0),MAKRO1(),ROUNDDOWN(I4-J4,-1)) -> 0 | L4: =IF(H4>0,ROUNDDOWN(H4,-1),0) -> 4600 | M4: =(D4-G4+J4)-(C4-F4) -> 4600
A5: Werbemittel Änderung Logo 2023 | C5: 0 | D5: 0 | E5: =D5-C5 -> 0 | F5: 2000 | G5: 0 | H5: =F5-G5 -> 2000
A6: Veranstaltungen zur Vorstellung | C6: 0 | D6: 0 | E6: =D6-C6 -> 0 | F6: 250 | G6: 0 | H6: =F6-G6 -> 250 | I6: 220 | J6: =IF(H6<0,IF(I6>0,IF((H6*(-1))>I6,I6,H6*(-1)),0),0) -> 0 | K6: =IF(OR(J6>I6,H6+I6<0),MAKRO1(),ROUNDDOWN(I6-J6,-1)) -> 220 | L6: =IF(H6>0,ROUNDDOWN(H6,-1),0) -> 250 | M6: =(D6-G6+J6)-(C6-F6) -> 250
A7: Merchandise u.ä. | C7: 500 | D7: 0 | E7: =D7-C7 -> -500 | F7: 500 | G7: 0 | H7: =F7-G7 -> 500 | I7: 500 | J7: =IF(H7<0,IF(I7>0,IF((H7*(-1))>I7,I7,H7*(-1)),0),0) -> 0 | K7: =IF(OR(J7>I7,H7+I7<0),MAKRO1(),ROUNDDOWN(I7-J7,-1)) -> 500 | L7: =IF(H7>0,ROUNDDOWN(H7,-1),0) -> 500 | M7: =(D7-G7+J7)-(C7-F7) -> 0
A8: CoCo-Pauschale | C8: 0 | D8: 0 | E8: =D8-C8 -> 0 | F8: 250 | G8: 0 | H8: =F8-G8 -> 250
A9: Gesamtsumme: | C9: =SUM(C3:C8) -> 500 | D9: =SUM(D3:D8) -> 0 | E9: =SUM(E3:E8) -> -500 | F9: =SUM(F3:F8) -> 8100 | G9: =SUM(G3:G8) -> 0 | H9: =SUM(H3:H8) -> 8100 | I9: =SUM(I3:I8) -> 1220 | J9: =SUM(J3:J8) -> 0 | K9: =SUM(K3:K8) -> 1220 | L9: =SUM(L3:L8) -> 5850 | M9: =(D9-G9+J9)-(C9-F9) -> 7600

Sheet Qualitätsmanagement
A1: Referat Qualitätsmanagement | B1: Häufigkeit | C1: Einnahmen | F1: Ausgaben | I1: nachrangig verwendbares Vj. Budget | J1: davon verwendet | K1: Zuführung "Fortgeschr. finanz. Mittel" | L1: Übertrag ins nächste HH-Jahr | M1: §5 Abs.4 S.2 FO
C2: PLAN | D2: IST | E2: SALDO | F2: PLAN | G2: IST | H2: SALDO
A3: Veranstaltung zu Erste Hilfe | C3: 0 | D3: 0 | E3: =D3-C3 -> 0 | F3: 250 | G3: 0 | H3: =F3-G3 -> 250 | I3: 0 | J3: =IF(H3<0,IF(I3>0,IF((H3*(-1))>I3,I3,H3*(-1)),0),0) -> 0 | K3: =IF(OR(J3>I3,H3+I3<0),MAKRO1(),ROUNDDOWN(I3-J3,-1)) -> 0 | L3: =IF(H3>0,ROUNDDOWN(H3,-1),0) -> 250 | M3: =(D3-G3+J3)-(C3-F3) -> 250
A4: Veranstaltung Erstsemestereinführung (ESE) | B4: 1 | C4: 0 | D4: 0 | E4: =D4-C4 -> 0 | F4: 500 | G4: 0 | H4: =F4-G4 -> 500 | I4: 310 | J4: =IF(H4<0,IF(I4>0,IF((H4*(-1))>I4,I4,H4*(-1)),0),0) -> 0 | K4: =IF(OR(J4>I4,H4+I4<0),MAKRO1(),ROUNDDOWN(I4-J4,-1)) -> 310 | L4: =IF(H4>0,ROUNDDOWN(H4,-1),0) -> 500 | M4: =(D4-G4+J4)-(C4-F4) -> 500
A5: Systemakkreditierung | C5: 0 | D5: 0 | E5: =D5-C5 -> 0 | F5: 500 | G5: 0 | H5: =F5-G5 -> 500 | I5: 0 | J5: =IF(H5<0,IF(I5>0,IF((H5*(-1))>I5,I5,H5*(-1)),0),0) -> 0 | K5: =IF(OR(J5>I5,H5+I5<0),MAKRO1(),ROUNDDOWN(I5-J5,-1)) -> 0 | L5: =IF(H5>0,ROUNDDOWN(H5,-1),0) -> 500 | M5: =(D5-G5+J5)-(C5-F5) -> 500
A6: CoCo-Pauschale | C6: 0 | D6: 0 | E6: =D6-C6 -> 0 | F6: 250 | G6: 0 | H6: =F6-G6 -> 250
A7: Gesamtsumme: | C7: =SUM(C3:C6) -> 0 | D7: =SUM(D3:D6) -> 0 | E7: =SUM(E3:E6) -> 0 | F7: =SUM(F3:F6) -> 1500 | G7: =SUM(G3:G6) -> 0 | H7: =SUM(H3:H6) -> 1500 | I7: =SUM(I3:I6) -> 310 | J7: =SUM(J3:J6) -> 0 | K7: =SUM(K3:K6) -> 310 | L7: =SUM(L3:L6) -> 1250 | M7: =(D7-G7+J7)-(C7-F7) -> 1500

Sheet Soziales
A1: Referat Soziales | B1: Häufigkeit | C1: Einnahmen | F1: Ausgaben | I1: nachrangig verwendbares Vj. Budget | J1: davon verwendet | K1: Zuführung "Fortgeschr. finanz. Mittel" | L1: Übertrag ins nächste HH-Jahr | M1: §5 Abs.4 S.2 FO
C2: PLAN | D2: IST | E2: SALDO | F2: PLAN | G2: IST | H2: SALDO
A3: Projekt "Studieren mit Kind" | C3: 0 | D3: 0 | E3: =D3-C3 -> 0 | F3: 100 | G3: 0 | H3: =F3-G3 -> 100 | I3: 100 | J3: =IF(H3<0,IF(I3>0,IF((H3*(-1))>I3,I3,H3*(-1)),0),0) -> 0 | K3: =IF(OR(J3>I3,H3+I3<0),MAKRO1(),ROUNDDOWN(I3-J3,-1)) -> 100 | L3: =IF(H3>0,ROUNDDOWN(H3,-1),0) -> 100 | M3: =(D3-G3+J3)-(C3-F3) -> 100
A4: Projekt Studieren mit Beeinträchtigung | C4: 0 | D4: 0 | E4: =D4-C4 -> 0 | F4: 100 | G4: 0 | H4: =F4-G4 -> 100 | I4: 100 | J4: =IF(H4<0,IF(I4>0,IF((H4*(-1))>I4,I4,H4*(-1)),0),0) -> 0 | K4: =IF(OR(J4>I4,H4+I4<0),MAKRO1(),ROUNDDOWN(I4-J4,-1)) -> 100 | L4: =IF(H4>0,ROUNDDOWN(H4,-1),0) -> 100 | M4: =(D4-G4+J4)-(C4-F4) -> 100
A5: Veranstaltungen zu sozialen Belangen | B5: 2 | C5: 0 | D5: 0 | E5: =D5-C5 -> 0 | F5: 150 | G5: 0 | H5: =F5-G5 -> 150 | I5: 150 | J5: =IF(H5<0,IF(I5>0,IF((H5*(-1))>I5,I5,H5*(-1)),0),0) -> 0 | K5: =IF(OR(J5>I5,H5+I5<0),MAKRO1(),ROUNDDOWN(I5-J5,-1)) -> 150 | L5: =IF(H5>0,ROUNDDOWN(H5,-1),0) -> 150 | M5: =(D5-G5+J5)-(C5-F5) -> 150
A6: CoCo-Pauschale | C6: 0 | D6: 0 | E6: =D6-C6 -> 0 | F6: 250 | G6: 0 | H6: =F6-G6 -> 250
A7: Gesamtsumme: | C7: =SUM(C3:C6) -> 0 | D7: =SUM(D3:D6) -> 0 | E7: =SUM(E3:E6) -> 0 | F7: =SUM(F3:F6) -> 600 | G7: =SUM(G3:G6) -> 0 | H7: =SUM(H3:H6) -> 600 | I7: =SUM(I3:I6) -> 350 | J7: =SUM(J3:J6) -> 0 | K7: =SUM(K3:K6) -> 350 | L7: =SUM(L3:L6) -> 350 | M7: =(D7-G7+J7)-(C7-F7) -> 600

Sheet Sport
A1: Referat Sport | B1: Häufigkeit | C1: Einnahmen | F1: Ausgaben | I1: nachrangig verwendbares Vj. Budget | J1: davon verwendet | K1: Zuführung "Fortgeschr. finanz. Mittel" | L1: Übertrag ins nächste HH-Jahr | M1: §5 Abs.4 S.2 FO
C2: PLAN | D2: IST | E2: SALDO | F2: PLAN | G2: IST | H2: SALDO
A3: Turniere, Preise, Beiträge | C3: 0 | D3: 0 | E3: =D3-C3 -> 0 | F3: 500 | G3: 0 | H3: =F3-G3 -> 500 | I3: 410 | J3: =IF(H3<0,IF(I3>0,IF((H3*(-1))>I3,I3,H3*(-1)),0),0) -> 0 | K3: =IF(OR(J3>I3,H3+I3<0),MAKRO1(),ROUNDDOWN(I3-J3,-1)) -> 410 | L3: =IF(H3>0,ROUNDDOWN(H3,-1),0) -> 500 | M3: =(D3-G3+J3)-(C3-F3) -> 500
A4: Startgebühren | C4: 0 | D4: 0 | E4: =D4-C4 -> 0 | F4: 200 | G4: 0 | H4: =F4-G4 -> 200 | I4: 200 | J4: =IF(H4<0,IF(I4>0,IF((H4*(-1))>I4,I4,H4*(-1)),0),0) -> 0 | K4: =IF(OR(J4>I4,H4+I4<0),MAKRO1(),ROUNDDOWN(I4-J4,-1)) -> 200 | L4: =IF(H4>0,ROUNDDOWN(H4,-1),0) -> 200 | M4: =(D4-G4+J4)-(C4-F4) -> 200
A5: Drachenbootrennen | B5: 1 | C5: 0 | D5: 0 | E5: =D5-C5 -> 0 | F5: 0 | G5: 0 | H5: =F5-G5 -> 0 | I5: 0 | J5: =IF(H5<0,IF(I5>0,IF((H5*(-1))>I5,I5,H5*(-1)),0),0) -> 0 | K5: =IF(OR(J5>I5,H5+I5<0),MAKRO1(),ROUNDDOWN(I5-J5,-1)) -> 0 | L5: =IF(H5>0,ROUNDDOWN(H5,-1),0) -> 0 | M5: =(D5-G5+J5)-(C5-F5) -> 0
A6: sächsische Beachmeisterschaften | B6: 1 | C6: 0 | D6: 0 | E6: =D6-C6 -> 0 | F6: 0 | G6: 0 | H6: =F6-G6 -> 0 | I6: 0 | J6: =IF(H6<0,IF(I6>0,IF((H6*(-1))>I6,I6,H6*(-1)),0),0) -> 0 | K6: =IF(OR(J6>I6,H6+I6<0),MAKRO1(),ROUNDDOWN(I6-J6,-1)) -> 0 | L6: =IF(H6>0,ROUNDDOWN(H6,-1),0) -> 0 | M6: =(D6-G6+J6)-(C6-F6) -> 0
A7: Gesundheitsmanagement | B7: 1 | C7: 0 | D7: 0 | E7: =D7-C7 -> 0 | F7: 500 | G7: 0 | H7: =F7-G7 -> 500 | I7: 500 | J7: =IF(H7<0,IF(I7>0,IF((H7*(-1))>I7,I7,H7*(-1)),0),0) -> 0 | K7: =IF(OR(J7>I7,H7+I7<0),MAKRO1(),ROUNDDOWN(I7-J7,-1)) -> 500 | L7: =IF(H7>0,ROUNDDOWN(H7,-1),0) -> 500 | M7: =(D7-G7+J7)-(C7-F7) -> 500
A8: Ausflüge | B8: 1 | C8: 200 | D8: 0 | E8: =D8-C8 -> -200 | F8: 300 | G8: 0 | H8: =F8-G8 -> 300 | I8: 300 | J8: =IF(H8<0,IF(I8>0,IF((H8*(-1))>I8,I8,H8*(-1)),0),0) -> 0 | K8: =IF(OR(J8>I8,H8+I8<0),MAKRO1(),ROUNDDOWN(I8-J8,-1)) -> 300 | L8: =IF(H8>0,ROUNDDOWN(H8,-1),0) -> 300 | M8: =(D8-G8+J8)-(C8-F8) -> 100
A9: Hochschulsportfest | B9: 1 | C9: 0 | D9: 0 | E9: =D9-C9 -> 0 | F9: 0 | G9: 0 | H9: =F9-G9 -> 0 | I9: 0 | J9: =IF(H9<0,IF(I9>0,IF((H9*(-1))>I9,I9,H9*(-1)),0),0) -> 0 | K9: =IF(OR(J9>I9,H9+I9<0),MAKRO1(),ROUNDDOWN(I9-J9,-1)) -> 0 | L9: =IF(H9>0,ROUNDDOWN(H9,-1),0) -> 0 | M9: =(D9-G9+J9)-(C9-F9) -> 0
A10: Sportevents (Eislaufen, Lasertag, Trampolinpark) | C10: 2000 | D10: 0 | E10: =D10-C10 -> -2000 | F10: 2500 | G10: 0 | H10: =F10-G10 -> 2500 | I10: 2500 | J10: =IF(H10<0,IF(I10>0,IF((H10*(-1))>I10,I10,H10*(-1)),0),0) -> 0 | K10: =IF(OR(J10>I10,H10+I10<0),MAKRO1(),ROUNDDOWN(I10-J10,-1)) -> 2500 | L10: =IF(H10>0,ROUNDDOWN(H10,-1),0) -> 2500 | M10: =(D10-G10+J10)-(C10-F10) -> 500
A11: CoCo-Pauschale | C11: 0 | D11: 0 | E11: =D11-C11 -> 0 | F11: 250 | G11: 0 | H11: =F11-G11 -> 250
A12: Gesamtsumme: | C12: =SUM(C3:C11) -> 2200 | D12: =SUM(D3:D11) -> 0 | E12: =SUM(E3:E11) -> -2200 | F12: =SUM(F3:F11) -> 4250 | G12: =SUM(G3:G11) -> 0 | H12: =SUM(H3:H11) -> 4250 | I12: =SUM(I3:I11) -> 3910 | J12: =SUM(J3:J11) -> 0 | K12: =SUM(K3:K11) -> 3910 | L12: =SUM(L3:L11) -> 4000 | M12: =(D12-G12+J12)-(C12-F12) -> 2050

Sheet Studium
A1: Referat Studium | B1: Häufigkeit | C1: Einnahmen | F1: Ausgaben | I1: nachrangig verwendbares Vj. Budget | J1: davon verwendet | K1: Zuführung "Fortgeschr. finanz. Mittel" | L1: Übertrag ins nächste HH-Jahr | M1: §5 Abs.4 S.2 FO
C2: PLAN | D2: IST | E2: SALDO | F2: PLAN | G2: IST | H2: SALDO
A3: Kompetenzorientiertes Prüfen | C3: 0 | D3: 0 | E3: =D3-C3 -> 0 | F3: 0 | G3: 0 | H3: =F3-G3 -> 0 | I3: 0 | J3: =IF(H3<0,IF(I3>0,IF((H3*(-1))>I3,I3,H3*(-1)),0),0) -> 0 | K3: =IF(OR(J3>I3,H3+I3<0),MAKRO1(),ROUNDDOWN(I3-J3,-1)) -> 0 | L3: =IF(H3>0,ROUNDDOWN(H3,-1),0) -> 0 | M3: =(D3-G3+J3)-(C3-F3) -> 0
A4: Veranstaltung lange Nacht des Studierens | B4: 1 | C4: 0 | D4: 0 | E4: =D4-C4 -> 0 | F4: 500 | G4: 0 | H4: =F4-G4 -> 500 | I4: 500 | J4: =IF(H4<0,IF(I4>0,IF((H4*(-1))>I4,I4,H4*(-1)),0),0) -> 0 | K4: =IF(OR(J4>I4,H4+I4<0),MAKRO1(),ROUNDDOWN(I4-J4,-1)) -> 500 | L4: =IF(H4>0,ROUNDDOWN(H4,-1),0) -> 500 | M4: =(D4-G4+J4)-(C4-F4) -> 500
A5: Rechtskosten Prüfungsangelegenheiten | C5: 0 | D5: 0 | E5: =D5-C5 -> 0 | F5: 750 | G5: 0 | H5: =F5-G5 -> 750 | I5: 750 | J5: =IF(H5<0,IF(I5>0,IF((H5*(-1))>I5,I5,H5*(-1)),0),0) -> 0 | K5: =IF(OR(J5>I5,H5+I5<0),MAKRO1(),ROUNDDOWN(I5-J5,-1)) -> 750 | L5: =IF(H5>0,ROUNDDOWN(H5,-1),0) -> 750 | M5: =(D5-G5+J5)-(C5-F5) -> 750
A6: CoCo-Pauschale | C6: 0 | D6: 0 | E6: =D6-C6 -> 0 | F6: 250 | G6: 0 | H6: =F6-G6 -> 250
A7: Gesamtsumme: | C7: =SUM(C3:C6) -> 0 | D7: =SUM(D3:D6) -> 0 | E7: =SUM(E3:E6) -> 0 | F7: =SUM(F3:F6) -> 1500 | G7: =SUM(G3:G6) -> 0 | H7: =SUM(H3:H6) -> 1500 | I7: =SUM(I3:I6) -> 1250 | J7: =SUM(J3:J6) -> 0 | K7: =SUM(K3:K6) -> 1250 | L7: =SUM(L3:L6) -> 1250 | M7: =(D7-G7+J7)-(C7-F7) -> 1500

Sheet Verwaltung@
A1: Referat studentische Selbstverwaltung & Organisation | B1: Häufigkeit | C1: Einnahmen | F1: Ausgaben | I1: nachrangig verwendbares Vj. Budget | J1: davon verwendet | K1: Zuführung "Fortgeschr. finanz. Mittel" | L1: Übertrag ins nächste HH- Jahr | M1: §5 Abs.4 S.2 FO
C2: PLAN | D2: IST | E2: SALDO | F2: PLAN | G2: IST | H2: SALDO
A3: Simkarten | C3: 0 | D3: 0 | E3: =D3-C3 -> 0 | F3: 180 | G3: 0 | H3: =F3-G3 -> 180 | I3: 0 | J3: =IF(H3<0,IF(I3>0,IF((H3*(-1))>I3,I3,H3*(-1)),0),0) -> 0 | K3: =IF(OR(J3>I3,H3+I3<0),MAKRO1(),ROUNDDOWN(I3-J3,-1)) -> 0 | L3: =IF(H3>0,ROUNDDOWN(H3,-1),0) -> 180 | M3: =(D3-G3+J3)-(C3-F3) -> 180
A4: Domains | C4: 0 | D4: 0 | E4: =D4-C4 -> 0 | F4: 80 | G4: 0 | H4: =F4-G4 -> 80 | I4: 20 | J4: =IF(H4<0,IF(I4>0,IF((H4*(-1))>I4,I4,H4*(-1)),0),0) -> 0 | K4: =IF(OR(J4>I4,H4+I4<0),MAKRO1(),ROUNDDOWN(I4-J4,-1)) -> 20 | L4: =IF(H4>0,ROUNDDOWN(H4,-1),0) -> 80 | M4: =(D4-G4+J4)-(C4-F4) -> 80
A5: Beitrag Gruppenausweis für Jugendherbergen | B5: 1 | C5: 0 | D5: 0 | E5: =D5-C5 -> 0 | F5: 26 | G5: 0 | H5: =F5-G5 -> 26 | I5: 0 | J5: =IF(H5<0,IF(I5>0,IF((H5*(-1))>I5,I5,H5*(-1)),0),0) -> 0 | K5: =IF(OR(J5>I5,H5+I5<0),MAKRO1(),ROUNDDOWN(I5-J5,-1)) -> 0 | L5: =IF(H5>0,ROUNDDOWN(H5,-1),0) -> 20 | M5: =(D5-G5+J5)-(C5-F5) -> 26
A6: Versicherung Beachvolleyballplätze | C6: 0 | D6: 0 | E6: 0 | F6: 500 | G6: 0 | H6: 0 | I6: 0 | J6: =IF(H6<0,IF(I6>0,IF((H6*(-1))>I6,I6,H6*(-1)),0),0) -> 0 | K6: =IF(OR(J6>I6,H6+I6<0),MAKRO1(),ROUNDDOWN(I6-J6,-1)) -> 0 | L6: =IF(H6>0,ROUNDDOWN(H6,-1),0) -> 0 | M6: =(D6-G6+J6)-(C6-F6) -> 500
A7: Dienste für elektronische Datenverarbeitung | C7: 0 | D7: 0 | E7: =D7-C7 -> 0 | F7: 15000 | G7: 0 | H7: =F7-G7 -> 15000 | I7: 5000 | J7: =IF(H7<0,IF(I7>0,IF((H7*(-1))>I7,I7,H7*(-1)),0),0) -> 0 | K7: =IF(OR(J7>I7,H7+I7<0),MAKRO1(),ROUNDDOWN(I7-J7,-1)) -> 5000 | L7: =IF(H7>0,ROUNDDOWN(H7,-1),0) -> 15000 | M7: =(D7-G7+J7)-(C7-F7) -> 15000
A8: Anschaffungen zwecks Umstrukturierung StuRa | C8: 0 | D8: 0 | E8: =D8-C8 -> 0 | F8: 500 | G8: 0 | H8: =F8-G8 -> 500 | I8: 580 | J8: =IF(H8<0,IF(I8>0,IF((H8*(-1))>I8,I8,H8*(-1)),0),0) -> 0 | K8: =IF(OR(J8>I8,H8+I8<0),MAKRO1(),ROUNDDOWN(I8-J8,-1)) -> 580 | L8: =IF(H8>0,ROUNDDOWN(H8,-1),0) -> 500 | M8: =(D8-G8+J8)-(C8-F8) -> 500
A9: andauernde Betreuung Server durch Externe | C9: 0 | D9: 0 | E9: =D9-C9 -> 0 | F9: 2400 | G9: 0 | H9: =F9-G9 -> 2400 | I9: 2400 | J9: =IF(H9<0,IF(I9>0,IF((H9*(-1))>I9,I9,H9*(-1)),0),0) -> 0 | K9: =IF(OR(J9>I9,H9+I9<0),MAKRO1(),ROUNDDOWN(I9-J9,-1)) -> 2400 | L9: =IF(H9>0,ROUNDDOWN(H9,-1),0) -> 2400 | M9: =(D9-G9+J9)-(C9-F9) -> 2400
A10: Beiträge/Gebühren | C10: 0 | D10: 0 | E10: =D10-C10 -> 0 | F10: 0 | G10: 0 | H10: =F10-G10 -> 0 | I10: 0 | J10: =IF(H10<0,IF(I10>0,IF((H10*(-1))>I10,I10,H10*(-1)),0),0) -> 0 | K10: =IF(OR(J10>I10,H10+I10<0),MAKRO1(),ROUNDDOWN(I10-J10,-1)) -> 0 | L10: =IF(H10>0,ROUNDDOWN(H10,-1),0) -> 0 | M10: =(D10-G10+J10)-(C10-F10) -> 0
A11: Büromaterial und -ausstattung | C11: 0 | D11: 0 | E11: =D11-C11 -> 0 | F11: 500 | G11: 0 | H11: =F11-G11 -> 500 | I11: 30 | J11: =IF(H11<0,IF(I11>0,IF((H11*(-1))>I11,I11,H11*(-1)),0),0) -> 0 | K11: =IF(OR(J11>I11,H11+I11<0),MAKRO1(),ROUNDDOWN(I11-J11,-1)) -> 30 | L11: =IF(H11>0,ROUNDDOWN(H11,-1),0) -> 500 | M11: =(D11-G11+J11)-(C11-F11) -> 500
A12: Studienmaterial (z.B. Bautabellen, etc.) | C12: 700 | D12: 0 | E12: =D12-C12 -> -700 | F12: 700 | G12: 0 | H12: =F12-G12 -> 700 | I12: 470 | J12: =IF(H12<0,IF(I12>0,IF((H12*(-1))>I12,I12,H12*(-1)),0),0) -> 0 | K12: =IF(OR(J12>I12,H12+I12<0),MAKRO1(),ROUNDDOWN(I12-J12,-1)) -> 470 | L12: =IF(H12>0,ROUNDDOWN(H12,-1),0) -> 700 | M12: =(D12-G12+J12)-(C12-F12) -> 0
A13: Getränkeautomat | C13: 1000 | D13: 0 | E13: =D13-C13 -> -1000 | F13: 900 | G13: 0 | H13: =F13-G13 -> 900 | I13: 550 | J13: =IF(H13<0,IF(I13>0,IF((H13*(-1))>I13,I13,H13*(-1)),0),0) -> 0 | K13: =IF(OR(J13>I13,H13+I13<0),MAKRO1(),ROUNDDOWN(I13-J13,-1)) -> 550 | L13: =IF(H13>0,ROUNDDOWN(H13,-1),0) -> 900 | M13: =(D13-G13+J13)-(C13-F13) -> -100
A14: Projekt "How to StuRa" (Dokumentation) | C14: 0 | D14: 0 | E14: 0 | F14: 0 | G14: 0 | H14: =F14-G14 -> 0 | I14: 2000 | J14: =IF(H14<0,IF(I14>0,IF((H14*(-1))>I14,I14,H14*(-1)),0),0) -> 0 | K14: =IF(OR(J14>I14,H14+I14<0),MAKRO1(),ROUNDDOWN(I14-J14,-1)) -> 2000 | L14: =IF(H14>0,ROUNDDOWN(H14,-1),0) -> 0 | M14: =(D14-G14+J14)-(C14-F14) -> 0
A15: laufende Kosten für Druck, samt Nebenkosten | C15: 0 | D15: 0 | E15: =D15-C15 -> 0 | F15: 400 | G15: 0 | H15: =F15-G15 -> 400 | I15: 100 | J15: =IF(H15<0,IF(I15>0,IF((H15*(-1))>I15,I15,H15*(-1)),0),0) -> 0 | K15: =IF(OR(J15>I15,H15+I15<0),MAKRO1(),ROUNDDOWN(I15-J15,-1)) -> 100 | L15: =IF(H15>0,ROUNDDOWN(H15,-1),0) -> 400 | M15: =(D15-G15+J15)-(C15-F15) -> 400
A16: Laborkittel An- & Verkauf | C16: 1800 | D16: 0 | E16: =D16-C16 -> -1800 | F16: 1800 | G16: 0 | H16: =F16-G16 -> 1800 | I16: 0 | J16: =IF(H16<0,IF(I16>0,IF((H16*(-1))>I16,I16,H16*(-1)),0),0) -> 0 | K16: =IF(OR(J16>I16,H16+I16<0),MAKRO1(),ROUNDDOWN(I16-J16,-1)) -> 0 | L16: =IF(H16>0,ROUNDDOWN(H16,-1),0) -> 1800 | M16: =(D16-G16+J16)-(C16-F16) -> 0
A17: CoCo-Pauschale | C17: 0 | D17: 0 | E17: =D17-C17 -> 0 | F17: 250 | G17: 0 | H17: =F17-G17 -> 250
A18: Gesamtsumme: | C18: =SUM(C3:C17) -> 3500 | D18: =SUM(D3:D17) -> 0 | E18: =SUM(E3:E17) -> -3500 | F18: =SUM(F3:F17) -> 23236 | G18: =SUM(G3:G17) -> 0 | H18: =SUM(H3:H17) -> 22736 | I18: =SUM(I3:I17) -> 11150 | J18: =SUM(J3:J17) -> 0 | K18: =SUM(K3:K17) -> 11150 | L18: =SUM(L3:L17) -> 22480 | M18: =(D18-G18+J18)-(C18-F18) -> 19736

Sheet Personal
A1: Referat Personal | B1: Häufigkeit | C1: Einnahmen | F1: Ausgaben | I1: nachrangig verwendbares Vj. Budget | J1: davon verwendet | K1: Zuführung "Fortgeschr. finanz. Mittel" | L1: Übertrag ins nächste HH-Jahr | M1: §5 Abs.4 S.2 FO
C2: PLAN | D2: IST | E2: SALDO | F2: PLAN | G2: IST | H2: SALDO
A3: Schulungen
A4: Akkreditierung / Qualitätsmanagement | C4: 0 | D4: 0 | E4: =D4-C4 -> 0 | F4: 1800 | G4: 0 | H4: =F4-G4 -> 1800 | I4: 0 | J4: =IF(H4<0,IF(I4>0,IF((H4*(-1))>I4,I4,H4*(-1)),0),0) -> 0 | K4: =IF(OR(J4>I4,H4+I4<0),MAKRO1(),ROUNDDOWN(I4-J4,-1)) -> 0 | L4: =IF(H4>0,ROUNDDOWN(H4,-1),0) -> 1800 | M4: =(D4-G4+J4)-(C4-F4) -> 1800
A5: Sozialberatung (BaföG, Jobberatung) / Soziales | C5: 0 | D5: 0 | E5: =D5-C5 -> 0 | F5: 50 | G5: 0 | H5: =F5-G5 -> 50 | I5: 50 | J5: =IF(H5<0,IF(I5>0,IF((H5*(-1))>I5,I5,H5*(-1)),0),0) -> 0 | K5: =IF(OR(J5>I5,H5+I5<0),MAKRO1(),ROUNDDOWN(I5-J5,-1)) -> 50 | L5: =IF(H5>0,ROUNDDOWN(H5,-1),0) -> 50 | M5: =(D5-G5+J5)-(C5-F5) -> 50
A6: studentische und akademische Selbstverwaltung (Studienprüfungsordnung) / Studium | C6: 0 | D6: 0 | E6: =D6-C6 -> 0 | F6: 100 | G6: 0 | H6: =F6-G6 -> 100 | I6: 100 | J6: =IF(H6<0,IF(I6>0,IF((H6*(-1))>I6,I6,H6*(-1)),0),0) -> 0 | K6: =IF(OR(J6>I6,H6+I6<0),MAKRO1(),ROUNDDOWN(I6-J6,-1)) -> 100 | L6: =IF(H6>0,ROUNDDOWN(H6,-1),0) -> 100 | M6: =(D6-G6+J6)-(C6-F6) -> 100
A7: Prüfungsangelegenheiten / Studium | C7: 0 | D7: 0 | E7: =D7-C7 -> 0 | F7: 50 | G7: 0 | H7: =F7-G7 -> 50 | I7: 50 | J7: =IF(H7<0,IF(I7>0,IF((H7*(-1))>I7,I7,H7*(-1)),0),0) -> 0 | K7: =IF(OR(J7>I7,H7+I7<0),MAKRO1(),ROUNDDOWN(I7-J7,-1)) -> 50 | L7: =IF(H7>0,ROUNDDOWN(H7,-1),0) -> 50 | M7: =(D7-G7+J7)-(C7-F7) -> 50
A8: pol. Bildung, Antidiskriminierung, Gleichstellung / Hochschulpolitik | C8: 0 | D8: 0 | E8: =D8-C8 -> 0 | F8: 100 | G8: 0 | H8: =F8-G8 -> 100 | I8: 100 | J8: =IF(H8<0,IF(I8>0,IF((H8*(-1))>I8,I8,H8*(-1)),0),0) -> 0 | K8: =IF(OR(J8>I8,H8+I8<0),MAKRO1(),ROUNDDOWN(I8-J8,-1)) -> 100 | L8: =IF(H8>0,ROUNDDOWN(H8,-1),0) -> 100 | M8: =(D8-G8+J8)-(C8-F8) -> 100
A9: Konstituierungsseminar (KoSe) / StuRa (Präsidium) | B9: 1 | C9: 0 | D9: 0 | E9: =D9-C9 -> 0 | F9: 500 | G9: 0 | H9: =F9-G9 -> 500 | I9: 2410 | J9: =IF(H9<0,IF(I9>0,IF((H9*(-1))>I9,I9,H9*(-1)),0),0) -> 0 | K9: =IF(OR(J9>I9,H9+I9<0),MAKRO1(),ROUNDDOWN(I9-J9,-1)) -> 2410 | L9: =IF(H9>0,ROUNDDOWN(H9,-1),0) -> 500 | M9: =(D9-G9+J9)-(C9-F9) -> 500
A10: Lern- und Informationsseminar (LuISe) / Personal | B10: 1 | C10: 0 | D10: 0 | E10: =D10-C10 -> 0 | F10: 500 | G10: 0 | H10: =F10-G10 -> 500 | I10: 500 | J10: =IF(H10<0,IF(I10>0,IF((H10*(-1))>I10,I10,H10*(-1)),0),0) -> 0 | K10: =IF(OR(J10>I10,H10+I10<0),MAKRO1(),ROUNDDOWN(I10-J10,-1)) -> 500 | L10: =IF(H10>0,ROUNDDOWN(H10,-1),0) -> 500 | M10: =(D10-G10+J10)-(C10-F10) -> 500
A11: Clearance and Rapprochement (CLARA) / StuRa (Kanzlei) | B11: 1 | C11: 0 | D11: 0 | E11: =D11-C11 -> 0 | F11: 150 | G11: 0 | H11: =F11-G11 -> 150 | I11: 0 | J11: =IF(H11<0,IF(I11>0,IF((H11*(-1))>I11,I11,H11*(-1)),0),0) -> 0 | K11: =IF(OR(J11>I11,H11+I11<0),MAKRO1(),ROUNDDOWN(I11-J11,-1)) -> 0 | L11: =IF(H11>0,ROUNDDOWN(H11,-1),0) -> 150 | M11: =(D11-G11+J11)-(C11-F11) -> 150
A12: Veranstaltung zur fachlichen Weiterbildung / Studium | C12: 0 | D12: 0 | E12: =D12-C12 -> 0 | F12: 250 | G12: 0 | H12: =F12-G12 -> 250 | I12: 250 | J12: =IF(H12<0,IF(I12>0,IF((H12*(-1))>I12,I12,H12*(-1)),0),0) -> 0 | K12: =IF(OR(J12>I12,H12+I12<0),MAKRO1(),ROUNDDOWN(I12-J12,-1)) -> 250 | L12: =IF(H12>0,ROUNDDOWN(H12,-1),0) -> 250 | M12: =(D12-G12+J12)-(C12-F12) -> 250
A13: Allgemeines
A14: Informationen zu Kandidierenden | C14: 0 | D14: 0 | E14: =D14-C14 -> 0 | F14: 100 | G14: 0 | H14: =F14-G14 -> 100 | I14: 100 | J14: =IF(H14<0,IF(I14>0,IF((H14*(-1))>I14,I14,H14*(-1)),0),0) -> 0 | K14: =IF(OR(J14>I14,H14+I14<0),MAKRO1(),ROUNDDOWN(I14-J14,-1)) -> 100 | L14: =IF(H14>0,ROUNDDOWN(H14,-1),0) -> 100 | M14: =(D14-G14+J14)-(C14-F14) -> 100
A15: Klausur-Tagungen | B15: 2 | C15: 0 | D15: 0 | E15: =D15-C15 -> 0 | F15: 500 | G15: 0 | H15: =F15-G15 -> 500 | I15: 0 | J15: =IF(H15<0,IF(I15>0,IF((H15*(-1))>I15,I15,H15*(-1)),0),0) -> 0 | K15: =IF(OR(J15>I15,H15+I15<0),MAKRO1(),ROUNDDOWN(I15-J15,-1)) -> 0 | L15: =IF(H15>0,ROUNDDOWN(H15,-1),0) -> 500 | M15: =(D15-G15+J15)-(C15-F15) -> 500
A16: auswärtige Arbeitstreffen / Arbeitsfahrten | C16: 0 | D16: 0 | E16: =D16-C16 -> 0 | F16: 1500 | G16: 0 | H16: =F16-G16 -> 1500 | I16: 0 | J16: =IF(H16<0,IF(I16>0,IF((H16*(-1))>I16,I16,H16*(-1)),0),0) -> 0 | K16: =IF(OR(J16>I16,H16+I16<0),MAKRO1(),ROUNDDOWN(I16-J16,-1)) -> 0 | L16: =IF(H16>0,ROUNDDOWN(H16,-1),0) -> 1500 | M16: =(D16-G16+J16)-(C16-F16) -> 1500
A17: CoCo-Pauschale | C17: 0 | D17: 0 | E17: =D17-C17 -> 0 | F17: 250 | G17: 0 | H17: =F17-G17 -> 250
A18: Gesamtsumme: | C18: =SUM(C4:C17) -> 0 | D18: =SUM(D4:D17) -> 0 | E18: =SUM(E4:E17) -> 0 | F18: =SUM(F4:F17) -> 5850 | G18: =SUM(G4:G17) -> 0 | H18: =SUM(H4:H17) -> 5850 | I18: =SUM(I4:I17) -> 3560 | J18: =SUM(J4:J17) -> 0 | K18: =SUM(K4:K17) -> 3560 | L18: =SUM(L4:L17) -> 5600 | M18: =(D18-G18+J18)-(C18-F18) -> 5850
